[Event "Late-Titled-Tuesday-Blitz-October-17-2023"]
[Site "Chess.com"]
[Date "2023.10.17"]
[Round "1"]
[White "Qvalda"]
[Black "Nor1lsk"]
[Result "0-1"]
[WhiteElo "2398"]
[BlackElo "2710"]
[TimeControl "180+1"]
[EndTime "14:08:06 PDT"]
[Termination "Nor1lsk won on time"]

1. Nf3 {[%clk 0:03:00.9]} 1... g6 {[%clk 0:02:57.4]} 2. e4 {[%clk 0:02:59.2]}
2... Bg7 {[%clk 0:02:57.8]} 3. d4 {[%clk 0:02:56.3]} 3... c6 {[%clk 0:02:57.5]}
4. Bd3 {[%clk 0:02:39.2]} 4... d5 {[%clk 0:02:57.2]} 5. e5 {[%clk 0:02:39.6]}
5... Bg4 {[%clk 0:02:56.9]} 6. Nbd2 {[%clk 0:02:40.2]} 6... e6 {[%clk
0:02:56.7]} 7. h3 {[%clk 0:02:40.7]} 7... Bxf3 {[%clk 0:02:56.7]} 8. Nxf3 {[%clk
0:02:41.6]} 8... Ne7 {[%clk 0:02:56.8]} 9. O-O {[%clk 0:02:42.1]} 9... Nd7
{[%clk 0:02:56.9]} 10. b3 {[%clk 0:02:41.6]} 10... c5 {[%clk 0:02:56.4]} 11. c3
{[%clk 0:02:27.6]} 11... Nc6 {[%clk 0:02:56]} 12. Be3 {[%clk 0:02:26.5]} 12...
Rc8 {[%clk 0:02:51.8]} 13. Rc1 {[%clk 0:02:25.6]} 13... O-O {[%clk 0:02:50.3]}
14. Qe2 {[%clk 0:02:25.6]} 14... Qa5 {[%clk 0:02:45.4]} 15. Qb2 {[%clk 0:02:23]}
15... cxd4 {[%clk 0:02:33.9]} 16. cxd4 {[%clk 0:02:23.9]} 16... Rc7 {[%clk
0:02:28.9]} 17. a3 {[%clk 0:02:23.2]} 17... Rfc8 {[%clk 0:02:26.9]} 18. b4
{[%clk 0:02:15.6]} 18... Qb6 {[%clk 0:02:26.3]} 19. Nd2 {[%clk 0:02:08.8]} 19...
Ne7 {[%clk 0:02:14]} 20. Nb3 {[%clk 0:02:06.2]} 20... Rxc1 {[%clk 0:02:13]} 21.
Rxc1 {[%clk 0:02:07.1]} 21... Rxc1+ {[%clk 0:02:12.3]} 22. Qxc1 {[%clk 0:02:08]}
22... Qc6 {[%clk 0:02:11.6]} 23. Qxc6 {[%clk 0:02:03]} 23... Nxc6 {[%clk
0:02:11.3]} 24. Kf1 {[%clk 0:01:53.6]} 24... f6 {[%clk 0:02:06.8]} 25. f4 {[%clk
0:01:53.7]} 25... fxe5 {[%clk 0:01:58.8]} 26. fxe5 {[%clk 0:01:54.6]} 26... Bf8
{[%clk 0:01:54.5]} 27. Ke2 {[%clk 0:01:38.1]} 27... a5 {[%clk 0:01:53.2]} 28. b5
{[%clk 0:01:38.1]} 28... Nd8 {[%clk 0:01:43.9]} 29. Nxa5 {[%clk 0:01:27.3]}
29... Bxa3 {[%clk 0:01:42.3]} 30. Bg5 {[%clk 0:01:13.4]} 30... Nf7 {[%clk
0:01:36.6]} 31. Bd2 {[%clk 0:01:13.4]} 31... Nd8 {[%clk 0:01:28.5]} 32. Kd1
{[%clk 0:01:13.6]} 32... Be7 {[%clk 0:01:17.2]} 33. Kc2 {[%clk 0:01:12]} 33...
Bh4 {[%clk 0:01:09.8]} 34. Kc3 {[%clk 0:01:02.9]} 34... Kf7 {[%clk 0:01:07.6]}
35. Nb3 {[%clk 0:00:53.6]} 35... b6 {[%clk 0:01:03.8]} 36. Nc1 {[%clk
0:00:34.8]} 36... Ke7 {[%clk 0:00:53.1]} 37. Na2 {[%clk 0:00:34.6]} 37... Nb8
{[%clk 0:00:41.7]} 38. Nb4 {[%clk 0:00:34]} 38... Kd7 {[%clk 0:00:41.7]} 39. Bh6
{[%clk 0:00:32.1]} 39... Be7 {[%clk 0:00:40.7]} 40. Bg7 {[%clk 0:00:30.6]} 40...
Nf7 {[%clk 0:00:30.7]} 41. Na6 {[%clk 0:00:27.8]} 41... Kc8 {[%clk 0:00:29.9]}
42. Be2 {[%clk 0:00:15.9]} 42... Kb7 {[%clk 0:00:19.5]} 43. Nxb8 {[%clk
0:00:14.7]} 43... Kxb8 {[%clk 0:00:20.4]} 44. Bg4 {[%clk 0:00:14.8]} 44... Nd8
{[%clk 0:00:20.2]} 45. Bf6 {[%clk 0:00:13.8]} 45... Bxf6 {[%clk 0:00:18.7]} 46.
exf6 {[%clk 0:00:14.7]} 46... Kc7 {[%clk 0:00:19]} 47. f7 {[%clk 0:00:14.8]}
47... Nxf7 {[%clk 0:00:19.1]} 48. Bxe6 {[%clk 0:00:14.8]} 48... Nd6 {[%clk
0:00:19.4]} 49. Kb4 {[%clk 0:00:11.8]} 49... Nf5 {[%clk 0:00:16.3]} 50. Kc3
{[%clk 0:00:07.9]} 50... Kd6 {[%clk 0:00:15.1]} 51. Bxf5 {[%clk 0:00:04.2]}
51... gxf5 {[%clk 0:00:15.3]} 52. Kd3 {[%clk 0:00:05.1]} 52... f4 {[%clk
0:00:15]} 53. Ke2 {[%clk 0:00:04.8]} 53... Ke6 {[%clk 0:00:15.4]} 54. Kf3 {[%clk
0:00:05.2]} 54... Kf5 {[%clk 0:00:15.8]} 55. h4 {[%clk 0:00:01.3]} 55... h5
{[%clk 0:00:15]} 56. g3 {[%clk 0:00:01.3]} 56... fxg3 {[%clk 0:00:15.1]} 57.
Kxg3 {[%clk 0:00:01.7]} 57... Ke4 {[%clk 0:00:15.5]} 0-1

[Event "Late-Titled-Tuesday-Blitz-October-17-2023"]
[Site "Chess.com"]
[Date "2023.10.17"]
[Round "1"]
[White "Zhigalko_Sergei"]
[Black "scandalgod"]
[Result "1-0"]
[WhiteElo "2950"]
[BlackElo "2499"]
[TimeControl "180+1"]
[EndTime "14:08:09 PDT"]
[Termination "Zhigalko_Sergei won by resignation"]

1. e4 {[%clk 0:03:00.9]} 1... e5 {[%clk 0:02:59.5]} 2. Nf3 {[%clk 0:03:01.1]}
2... Nc6 {[%clk 0:02:57]} 3. Bc4 {[%clk 0:03:01.5]} 3... Nf6 {[%clk 0:02:56.7]}
4. d3 {[%clk 0:03:01.3]} 4... Be7 {[%clk 0:02:56.8]} 5. O-O {[%clk 0:03:01]}
5... O-O {[%clk 0:02:57.4]} 6. Re1 {[%clk 0:03:00.5]} 6... d6 {[%clk 0:02:57.6]}
7. c3 {[%clk 0:03:00]} 7... Na5 {[%clk 0:02:57]} 8. Bb5 {[%clk 0:03:00]} 8... a6
{[%clk 0:02:57.5]} 9. Ba4 {[%clk 0:03:00.4]} 9... b5 {[%clk 0:02:58.1]} 10. Bc2
{[%clk 0:03:00.5]} 10... c5 {[%clk 0:02:58.7]} 11. Nbd2 {[%clk 0:03:00.8]} 11...
Nc6 {[%clk 0:02:58.7]} 12. h3 {[%clk 0:02:59.4]} 12... Re8 {[%clk 0:02:58.8]}
13. Nf1 {[%clk 0:02:59.1]} 13... Bf8 {[%clk 0:02:58.8]} 14. Bg5 {[%clk
0:02:54.7]} 14... h6 {[%clk 0:02:57.9]} 15. Bh4 {[%clk 0:02:55]} 15... Be6
{[%clk 0:02:57.9]} 16. d4 {[%clk 0:02:49]} 16... cxd4 {[%clk 0:02:54.4]} 17.
cxd4 {[%clk 0:02:49.9]} 17... exd4 {[%clk 0:02:53.3]} 18. Nxd4 {[%clk
0:02:50.8]} 18... Nxd4 {[%clk 0:02:53.4]} 19. Qxd4 {[%clk 0:02:51.7]} 19... Rc8
{[%clk 0:02:52.9]} 20. Ne3 {[%clk 0:02:51.6]} 20... Be7 {[%clk 0:02:49.5]} 21.
Rad1 {[%clk 0:02:48.4]} 21... Qa5 {[%clk 0:02:41.6]} 22. a3 {[%clk 0:02:44.7]}
22... Rc6 {[%clk 0:01:58.9]} 23. Bb1 {[%clk 0:02:39]} 23... Rec8 {[%clk
0:01:55.7]} 24. Qd3 {[%clk 0:02:17.7]} 24... Kf8 {[%clk 0:01:02.6]} 25. Nd5
{[%clk 0:02:05.7]} 25... Bxd5 {[%clk 0:00:50.3]} 26. exd5 {[%clk 0:02:05.7]}
26... R6c7 {[%clk 0:00:50.5]} 27. Bg3 {[%clk 0:01:10.7]} 27... Qb6 {[%clk
0:00:46.8]} 28. Qe2 {[%clk 0:01:02.1]} 28... Re8 {[%clk 0:00:41.6]} 29. Qf3
{[%clk 0:00:57.6]} 29... Kg8 {[%clk 0:00:33.8]} 30. Rc1 {[%clk 0:00:53.5]} 30...
Rxc1 {[%clk 0:00:33.1]} 31. Rxc1 {[%clk 0:00:54.4]} 31... Qd4 {[%clk 0:00:29.8]}
32. Qc3 {[%clk 0:00:49.6]} 32... Qxd5 {[%clk 0:00:24.6]} 33. Qc6 {[%clk
0:00:42.8]} 33... Bf8 {[%clk 0:00:18]} 34. Qxd5 {[%clk 0:00:39.1]} 34... Nxd5
{[%clk 0:00:18.9]} 35. Kf1 {[%clk 0:00:39.9]} 35... Nb6 {[%clk 0:00:18.5]} 36.
Ba2 {[%clk 0:00:35.1]} 36... d5 {[%clk 0:00:18.3]} 37. Rc6 {[%clk 0:00:32.2]}
37... Nc4 {[%clk 0:00:18.5]} 38. Bxc4 {[%clk 0:00:29.4]} 38... bxc4 {[%clk
0:00:17]} 39. Rxa6 {[%clk 0:00:22.4]} 39... Re6 {[%clk 0:00:17.2]} 40. Ra8
{[%clk 0:00:21.2]} 40... Rb6 {[%clk 0:00:16.5]} 41. Be5 {[%clk 0:00:13.8]} 41...
f6 {[%clk 0:00:16]} 42. Bd4 {[%clk 0:00:13.8]} 42... Rc6 {[%clk 0:00:14.4]} 43.
Rd8 {[%clk 0:00:13]} 43... Kf7 {[%clk 0:00:13.4]} 44. Rxd5 {[%clk 0:00:13.3]}
44... Bd6 {[%clk 0:00:12.8]} 45. Ke2 {[%clk 0:00:12.1]} 45... Ke6 {[%clk
0:00:13.2]} 46. Rb5 {[%clk 0:00:12.3]} 46... Be5 {[%clk 0:00:12.6]} 47. Bxe5
{[%clk 0:00:08.8]} 47... fxe5 {[%clk 0:00:13.5]} 48. Kd2 {[%clk 0:00:09.4]}
48... Kf5 {[%clk 0:00:13.2]} 49. a4 {[%clk 0:00:08.5]} 49... Ke4 {[%clk
0:00:13.2]} 50. Kc3 {[%clk 0:00:07.5]} 50... Ra6 {[%clk 0:00:08.3]} 51. a5
{[%clk 0:00:07.5]} 51... Rc6 {[%clk 0:00:06.3]} 52. Rb6 {[%clk 0:00:06.4]} 52...
Rc5 {[%clk 0:00:06.1]} 53. a6 {[%clk 0:00:06.9]} 53... Kd5 {[%clk 0:00:04.9]}
54. Kb4 {[%clk 0:00:06.7]} 54... Rc8 {[%clk 0:00:02.6]} 55. a7 {[%clk
0:00:06.2]} 55... Kd4 {[%clk 0:00:02.8]} 56. Rb8 {[%clk 0:00:06.1]} 1-0

[Event "Late-Titled-Tuesday-Blitz-October-17-2023"]
[Site "Chess.com"]
[Date "2023.10.17"]
[Round "1"]
[White "whiteglovethief"]
[Black "crosky"]
[Result "1-0"]
[WhiteElo "2643"]
[BlackElo "2338"]
[TimeControl "180+1"]
[EndTime "14:08:11 PDT"]
[Termination "whiteglovethief won on time"]

1. d4 {[%clk 0:02:51.1]} 1... Nf6 {[%clk 0:02:58.9]} 2. c4 {[%clk 0:02:51.4]}
2... e6 {[%clk 0:02:58.6]} 3. Nf3 {[%clk 0:02:51.6]} 3... d5 {[%clk 0:02:58.3]}
4. g3 {[%clk 0:02:51.8]} 4... Bb4+ {[%clk 0:02:58.1]} 5. Bd2 {[%clk 0:02:51]}
5... Be7 {[%clk 0:02:57.5]} 6. Bg2 {[%clk 0:02:51.6]} 6... O-O {[%clk
0:02:58.4]} 7. O-O {[%clk 0:02:51.7]} 7... Nbd7 {[%clk 0:02:58.8]} 8. Qc2 {[%clk
0:02:49.6]} 8... c6 {[%clk 0:02:58.5]} 9. Bf4 {[%clk 0:02:48.5]} 9... b6 {[%clk
0:02:54.7]} 10. cxd5 {[%clk 0:02:47.1]} 10... cxd5 {[%clk 0:02:47.5]} 11. Rc1
{[%clk 0:02:41.7]} 11... Ba6 {[%clk 0:02:44.9]} 12. Nc3 {[%clk 0:02:31.6]} 12...
Rc8 {[%clk 0:02:43.9]} 13. Qa4 {[%clk 0:02:30.6]} 13... Bc4 {[%clk 0:02:06]} 14.
b3 {[%clk 0:02:28.9]} 14... b5 {[%clk 0:02:06.2]} 15. Qxa7 {[%clk 0:02:28.4]}
15... b4 {[%clk 0:01:44.1]} 16. bxc4 {[%clk 0:02:25.4]} 16... bxc3 {[%clk
0:01:44.5]} 17. Rxc3 {[%clk 0:02:17.7]} 17... dxc4 {[%clk 0:01:44.3]} 18. Rac1
{[%clk 0:02:14.1]} 18... Ra8 {[%clk 0:01:38.4]} 19. Qb7 {[%clk 0:02:11.7]} 19...
Rxa2 {[%clk 0:01:38.7]} 20. Rxc4 {[%clk 0:02:11.1]} 20... Rxe2 {[%clk
0:01:38.7]} 21. Bf1 {[%clk 0:01:55.5]} 21... Ra2 {[%clk 0:01:25.8]} 22. Bc7
{[%clk 0:01:51.8]} 22... Qa8 {[%clk 0:01:12.6]} 23. Qb1 {[%clk 0:01:47.9]} 23...
Nd5 {[%clk 0:00:57.8]} 24. Ne5 {[%clk 0:01:36.7]} 24... Nxe5 {[%clk 0:00:42.2]}
25. Bxe5 {[%clk 0:01:37.6]} 25... Bf6 {[%clk 0:00:27.3]} 26. Rc8 {[%clk
0:01:30.1]} 26... Rxc8 {[%clk 0:00:23.8]} 27. Qxa2 {[%clk 0:01:29.7]} 27... Rd8
{[%clk 0:00:20.4]} 28. Qe2 {[%clk 0:01:24.8]} 28... Bxe5 {[%clk 0:00:19.9]} 29.
Qxe5 {[%clk 0:01:23.7]} 29... Qa3 {[%clk 0:00:17.1]} 30. Rb1 {[%clk 0:01:19.3]}
30... g6 {[%clk 0:00:15.6]} 31. h4 {[%clk 0:01:18.4]} 31... Qd6 {[%clk
0:00:15.6]} 32. Qg5 {[%clk 0:01:10.1]} 32... Ne7 {[%clk 0:00:13.8]} 33. Rb7
{[%clk 0:01:08.1]} 33... Nf5 {[%clk 0:00:12.9]} 34. Qf6 {[%clk 0:01:05.7]} 34...
Rf8 {[%clk 0:00:08.6]} 35. Bh3 {[%clk 0:00:43.5]} 35... Qxd4 {[%clk 0:00:08.1]}
36. Qg5 {[%clk 0:00:43.9]} 36... h6 {[%clk 0:00:05.8]} 37. Qc1 {[%clk
0:00:42.1]} 37... Nxg3 {[%clk 0:00:05.4]} 38. Qxh6 {[%clk 0:00:39.2]} 38... Nf5
{[%clk 0:00:02.6]} 39. Bxf5 {[%clk 0:00:38.7]} 39... exf5 {[%clk 0:00:02.7]} 40.
h5 {[%clk 0:00:31.5]} 40... Qd1+ {[%clk 0:00:02.7]} 41. Kg2 {[%clk 0:00:32.2]}
41... Qxh5 {[%clk 0:00:01.2]} 42. Qxh5 {[%clk 0:00:32.8]} 42... gxh5 {[%clk
0:00:01.8]} 43. Kg3 {[%clk 0:00:33.5]} 43... Kg7 {[%clk 0:00:01]} 44. Kf4 {[%clk
0:00:33.8]} 44... Kg6 {[%clk 0:00:01.9]} 45. Rb1 {[%clk 0:00:33]} 45... Rc8
{[%clk 0:00:02.2]} 46. Rg1+ {[%clk 0:00:33.6]} 46... Kf6 {[%clk 0:00:02.8]} 47.
Ra1 {[%clk 0:00:30.9]} 47... Rc4+ {[%clk 0:00:03.2]} 48. Kg3 {[%clk 0:00:31.2]}
48... Kg5 {[%clk 0:00:03.7]} 49. Ra7 {[%clk 0:00:27.9]} 49... h4+ {[%clk
0:00:04.6]} 50. Kh3 {[%clk 0:00:27.8]} 50... Rc3+ {[%clk 0:00:04]} 51. Kg2
{[%clk 0:00:28.3]} 51... f6 {[%clk 0:00:04.1]} 52. Rg7+ {[%clk 0:00:26.1]} 52...
Kf4 {[%clk 0:00:04.5]} 53. Rg6 {[%clk 0:00:26.4]} 53... h3+ {[%clk 0:00:04.7]}
54. Kh2 {[%clk 0:00:27.1]} 54... Kf3 {[%clk 0:00:02]} 55. Rg3+ {[%clk
0:00:26.3]} 55... Kxf2 {[%clk 0:00:01]} 56. Rxc3 {[%clk 0:00:26.3]} 56... f4
{[%clk 0:00:01.6]} 57. Rc5 {[%clk 0:00:25.8]} 57... f3 {[%clk 0:00:01.3]} 58.
Rf5 {[%clk 0:00:24.6]} 58... Ke2 {[%clk 0:00:01.1]} 59. Kxh3 {[%clk 0:00:24.8]}
1-0

[Event "Late-Titled-Tuesday-Blitz-October-17-2023"]
[Site "Chess.com"]
[Date "2023.10.17"]
[Round "1"]
[White "campochess"]
[Black "2346PL"]
[Result "1-0"]
[WhiteElo "2188"]
[BlackElo "2524"]
[TimeControl "180+1"]
[EndTime "14:08:16 PDT"]
[Termination "campochess won on time"]

1. d4 {[%clk 0:02:59]} 1... d6 {[%clk 0:03:00.9]} 2. e4 {[%clk 0:02:57.8]} 2...
Nf6 {[%clk 0:03:00.5]} 3. Nc3 {[%clk 0:02:57.6]} 3... e5 {[%clk 0:03:00.8]} 4.
dxe5 {[%clk 0:02:56.5]} 4... dxe5 {[%clk 0:03:01.7]} 5. Qxd8+ {[%clk 0:02:55.9]}
5... Kxd8 {[%clk 0:03:02.6]} 6. Bg5 {[%clk 0:02:54.9]} 6... Be6 {[%clk
0:03:00.2]} 7. O-O-O+ {[%clk 0:02:53.8]} 7... Nd7 {[%clk 0:02:59.9]} 8. Nf3
{[%clk 0:02:52.4]} 8... Bd6 {[%clk 0:02:57.3]} 9. Nd2 {[%clk 0:02:46.5]} 9... h6
{[%clk 0:02:53.4]} 10. Bh4 {[%clk 0:02:43.5]} 10... g5 {[%clk 0:02:42.3]} 11.
Bg3 {[%clk 0:02:43.3]} 11... Nh5 {[%clk 0:02:42.3]} 12. Nc4 {[%clk 0:02:43.2]}
12... Ke7 {[%clk 0:02:41.4]} 13. Ne3 {[%clk 0:02:38.6]} 13... c6 {[%clk
0:02:36.8]} 14. Bc4 {[%clk 0:02:37.1]} 14... b5 {[%clk 0:02:20.4]} 15. Bb3
{[%clk 0:02:33.2]} 15... a5 {[%clk 0:02:18]} 16. Bxe6 {[%clk 0:02:31.3]} 16...
fxe6 {[%clk 0:02:18.2]} 17. Rd2 {[%clk 0:02:24.6]} 17... Ndf6 {[%clk 0:01:50.7]}
18. f3 {[%clk 0:02:23]} 18... Nxg3 {[%clk 0:01:46.5]} 19. hxg3 {[%clk
0:02:21.6]} 19... h5 {[%clk 0:01:42.7]} 20. Rhd1 {[%clk 0:02:06.7]} 20... Bb4
{[%clk 0:01:39.2]} 21. a3 {[%clk 0:02:01.3]} 21... Bxc3 {[%clk 0:01:38.9]} 22.
bxc3 {[%clk 0:02:01]} 22... Rad8 {[%clk 0:01:31.2]} 23. Rxd8 {[%clk 0:01:59.1]}
23... Rxd8 {[%clk 0:01:32.1]} 24. Rxd8 {[%clk 0:01:57.6]} 24... Kxd8 {[%clk
0:01:33]} 25. c4 {[%clk 0:01:57.3]} 25... Kc7 {[%clk 0:01:23]} 26. cxb5 {[%clk
0:01:56.8]} 26... cxb5 {[%clk 0:01:23.9]} 27. c4 {[%clk 0:01:56.1]} 27... Kb6
{[%clk 0:01:21.6]} 28. cxb5 {[%clk 0:01:55.7]} 28... Kxb5 {[%clk 0:01:22]} 29.
Kb2 {[%clk 0:01:55.6]} 29... Nd7 {[%clk 0:01:10.1]} 30. Kc3 {[%clk 0:01:38.1]}
30... Nb6 {[%clk 0:01:08.6]} 31. Kb3 {[%clk 0:01:36.9]} 31... a4+ {[%clk
0:01:07.4]} 32. Kc3 {[%clk 0:01:35.6]} 32... Kc5 {[%clk 0:01:07.5]} 33. Kd3
{[%clk 0:01:32.9]} 33... Kb5 {[%clk 0:00:47]} 34. Kc3 {[%clk 0:01:31.6]} 34...
Nd7 {[%clk 0:00:36.8]} 35. Nc4 {[%clk 0:01:28.9]} 35... Kc5 {[%clk 0:00:35.9]}
36. Nb2 {[%clk 0:01:25.7]} 36... Kb5 {[%clk 0:00:36.2]} 37. Nd3 {[%clk
0:01:24.8]} 37... g4 {[%clk 0:00:34.4]} 38. fxg4 {[%clk 0:01:22.6]} 38... hxg4
{[%clk 0:00:34.6]} 39. Nf2 {[%clk 0:00:55.3]} 39... Nc5 {[%clk 0:00:34.3]} 40.
Nxg4 {[%clk 0:00:49.8]} 40... Nxe4+ {[%clk 0:00:34.4]} 41. Kd3 {[%clk
0:00:49.3]} 41... Nc5+ {[%clk 0:00:19.3]} 42. Kc3 {[%clk 0:00:47.7]} 42... e4
{[%clk 0:00:18.7]} 43. Ne3 {[%clk 0:00:45.1]} 43... e5 {[%clk 0:00:18.3]} 44. g4
{[%clk 0:00:45]} 44... Ne6 {[%clk 0:00:17.3]} 45. Nf5 {[%clk 0:00:40.7]} 45...
Nf4 {[%clk 0:00:16.2]} 46. Nd6+ {[%clk 0:00:40.1]} 46... Kc6 {[%clk 0:00:15.2]}
47. Nxe4 {[%clk 0:00:39.9]} 47... Nxg2 {[%clk 0:00:15.3]} 48. g5 {[%clk
0:00:39.1]} 48... Nf4 {[%clk 0:00:15.1]} 49. Kc4 {[%clk 0:00:32.9]} 49... Ng6
{[%clk 0:00:11.5]} 50. Nc3 {[%clk 0:00:32.2]} 50... Ne7 {[%clk 0:00:09.9]} 51.
Nxa4 {[%clk 0:00:30.9]} 51... Kd6 {[%clk 0:00:10]} 52. Nc3 {[%clk 0:00:29.3]}
52... Ke6 {[%clk 0:00:09.8]} 53. a4 {[%clk 0:00:28.9]} 53... Nc6 {[%clk
0:00:10.1]} 54. Kc5 {[%clk 0:00:28.3]} 54... Nd4 {[%clk 0:00:10.5]} 55. Ne4
{[%clk 0:00:23.7]} 55... Kf5 {[%clk 0:00:10.2]} 56. Kd5 {[%clk 0:00:23.7]} 56...
Nb3 {[%clk 0:00:09.3]} 57. Kc4 {[%clk 0:00:22.1]} 57... Na5+ {[%clk 0:00:08.6]}
58. Kb5 {[%clk 0:00:20.2]} 58... Nb7 {[%clk 0:00:08.6]} 59. Kb6 {[%clk 0:00:20]}
59... Nd8 {[%clk 0:00:06.7]} 60. g6 {[%clk 0:00:19.2]} 60... Kxg6 {[%clk
0:00:06]} 61. Nc5 {[%clk 0:00:18.1]} 61... Kf5 {[%clk 0:00:05.2]} 62. a5 {[%clk
0:00:18.3]} 62... e4 {[%clk 0:00:03.9]} 63. a6 {[%clk 0:00:18.4]} 63... e3
{[%clk 0:00:01.6]} 64. a7 {[%clk 0:00:18]} 64... e2 {[%clk 0:00:02.1]} 65. Nd3
{[%clk 0:00:18]} 1-0

[Event "Late-Titled-Tuesday-Blitz-October-17-2023"]
[Site "Chess.com"]
[Date "2023.10.17"]
[Round "1"]
[White "Lion_DL"]
[Black "Iball95"]
[Result "0-1"]
[WhiteElo "2453"]
[BlackElo "2843"]
[TimeControl "180+1"]
[EndTime "14:08:21 PDT"]
[Termination "Iball95 won on time"]

1. e4 {[%clk 0:02:58.7]} 1... c5 {[%clk 0:03:00]} 2. Nf3 {[%clk 0:02:56.7]} 2...
e6 {[%clk 0:03:00.2]} 3. d3 {[%clk 0:02:56]} 3... d5 {[%clk 0:02:59.9]} 4. Qe2
{[%clk 0:02:55.1]} 4... Nc6 {[%clk 0:02:41.7]} 5. g3 {[%clk 0:02:53.9]} 5... Nf6
{[%clk 0:02:40.7]} 6. Bg2 {[%clk 0:02:53.5]} 6... g6 {[%clk 0:02:41.3]} 7. O-O
{[%clk 0:02:40.7]} 7... Bg7 {[%clk 0:02:41.4]} 8. Bg5 {[%clk 0:02:17.9]} 8...
dxe4 {[%clk 0:02:34.8]} 9. dxe4 {[%clk 0:02:16.2]} 9... h6 {[%clk 0:02:35.5]}
10. Rd1 {[%clk 0:02:02.4]} 10... Qb6 {[%clk 0:02:35.5]} 11. Bc1 {[%clk
0:02:00.5]} 11... O-O {[%clk 0:02:35.4]} 12. c3 {[%clk 0:02:01]} 12... Qc7
{[%clk 0:02:13.3]} 13. h3 {[%clk 0:01:49.4]} 13... b6 {[%clk 0:02:12.6]} 14. a4
{[%clk 0:01:47.4]} 14... Bb7 {[%clk 0:02:10.4]} 15. Na3 {[%clk 0:01:47.9]} 15...
Rad8 {[%clk 0:01:57.4]} 16. Bf4 {[%clk 0:01:41.5]} 16... Qe7 {[%clk 0:01:57.7]}
17. Nc4 {[%clk 0:01:37.7]} 17... Rxd1+ {[%clk 0:01:47.3]} 18. Rxd1 {[%clk
0:01:38.6]} 18... Rd8 {[%clk 0:01:48]} 19. Nd6 {[%clk 0:01:28]} 19... Ba8 {[%clk
0:01:46.3]} 20. e5 {[%clk 0:01:07.1]} 20... Nd5 {[%clk 0:01:46.8]} 21. c4 {[%clk
0:01:03.6]} 21... Nxf4 {[%clk 0:01:42.9]} 22. gxf4 {[%clk 0:01:04.5]} 22... Nb4
{[%clk 0:01:36.8]} 23. Nb5 {[%clk 0:01:00.6]} 23... a6 {[%clk 0:01:30.6]} 24.
Rxd8+ {[%clk 0:00:53.3]} 24... Qxd8 {[%clk 0:01:31.5]} 25. Nd6 {[%clk
0:00:53.5]} 25... Bf8 {[%clk 0:01:30.2]} 26. Ne4 {[%clk 0:00:50.8]} 26... Be7
{[%clk 0:01:28.8]} 27. Nfd2 {[%clk 0:00:48.9]} 27... Kg7 {[%clk 0:01:20.5]} 28.
Nb1 {[%clk 0:00:44]} 28... Qd3 {[%clk 0:01:18.6]} 29. Nbc3 {[%clk 0:00:32.3]}
29... Bc6 {[%clk 0:01:00.4]} 30. Bf1 {[%clk 0:00:22.6]} 30... Qd4 {[%clk
0:00:55.1]} 31. b3 {[%clk 0:00:20.3]} 31... Bh4 {[%clk 0:00:47.5]} 32. Qe3
{[%clk 0:00:20.3]} 32... Nc2 {[%clk 0:00:43.4]} 33. Qd2 {[%clk 0:00:16.9]} 33...
Nb4 {[%clk 0:00:37.5]} 34. Qe3 {[%clk 0:00:13.7]} 34... Be7 {[%clk 0:00:37.7]}
35. Bg2 {[%clk 0:00:11.5]} 35... Nc2 {[%clk 0:00:35.7]} 36. Qd2 {[%clk
0:00:10.8]} 36... Nb4 {[%clk 0:00:32.8]} 37. Qxd4 {[%clk 0:00:08.2]} 37... cxd4
{[%clk 0:00:33.7]} 38. Ne2 {[%clk 0:00:08.3]} 38... d3 {[%clk 0:00:32.2]} 39.
N2c3 {[%clk 0:00:08.8]} 39... Nc2 {[%clk 0:00:28.6]} 40. Nd2 {[%clk 0:00:09]}
40... Bd7 {[%clk 0:00:28.6]} 41. Be4 {[%clk 0:00:08.5]} 41... Bb4 {[%clk
0:00:27.6]} 42. Ncb1 {[%clk 0:00:09.1]} 42... Nd4 {[%clk 0:00:17.6]} 43. Bxd3
{[%clk 0:00:08.3]} 43... g5 {[%clk 0:00:18.2]} 44. Kf1 {[%clk 0:00:08.3]} 44...
gxf4 {[%clk 0:00:18.9]} 45. Be4 {[%clk 0:00:06.4]} 45... f5 {[%clk 0:00:17]} 46.
exf6+ {[%clk 0:00:06]} 46... Kxf6 {[%clk 0:00:17.9]} 47. Nf3 {[%clk 0:00:06.4]}
47... Bc5 {[%clk 0:00:16.9]} 48. Nbd2 {[%clk 0:00:05.6]} 48... Nxf3 {[%clk
0:00:14.6]} 49. Nxf3 {[%clk 0:00:06]} 49... e5 {[%clk 0:00:14.9]} 50. Ke2 {[%clk
0:00:06.3]} 50... Bxh3 {[%clk 0:00:15.4]} 51. Bb7 {[%clk 0:00:05.6]} 51... a5
{[%clk 0:00:16.1]} 52. Nd2 {[%clk 0:00:06]} 52... Bg4+ {[%clk 0:00:16.3]} 53. f3
{[%clk 0:00:05.6]} 53... Bf5 {[%clk 0:00:16.2]} 54. Ne4+ {[%clk 0:00:06.5]}
54... Kg6 {[%clk 0:00:16.2]} 55. Nc3 {[%clk 0:00:03.3]} 55... Bd4 {[%clk
0:00:16.5]} 56. Nd5 {[%clk 0:00:02.9]} 56... Bc2 {[%clk 0:00:15.1]} 0-1